bitfinex-derivatives/quotes_ETHF0:USTF0_20250125
["timestamp","ask_amount","ask_price","bid_price","bid_amount"]
[1737805980544,4.46777582,3307.1,3307.0,0.00453734]
[1737805981137,3.98390582,3307.1,3307.0,0.86027814]
[1737805981438,4.46777582,3307.1,3307.0,0.37638814]
[1737805982043,3.98390582,3307.1,3307.0,1.45534771]
[1737805982443,1.43582,3307.5,3307.3,0.48383]
[1737805982740,1.43582,3307.5,3307.4,0.3718508]
[1737805983750,5.29675537,3307.5,3307.4,0.3718508]
[1737805984743,5.29675537,3307.5,3307.3,0.48383]
[1737805985048,5.29675537,3307.5,3307.4,0.37165708]
[1737805985349,3.86093537,3307.5,3307.4,0.85548708]
[1737805985549,3.86093537,3307.5,3307.4,1.44983732]
[1737805985745,3.86093537,3307.5,3307.4,1.44959756]
[1737805986252,3.86093537,3307.5,3307.4,0.85527906]
[1737805987242,4.34475537,3307.5,3307.4,0.85527906]
[1737805987548,4.34475537,3307.5,3307.4,0.37144906]
[1737805987745,3.86093537,3307.5,3307.2,3.2078]
[1737805988244,0.48384,3307.3,3307.2,3.2078]
[1737805988439,0.48384,3307.3,3307.2,3.57916493]
[1737805988646,4.32604939,3307.3,3307.2,3.57916493]
[1737805988853,4.32604939,3307.3,3307.2,3.2078]
[1737805989756,4.32604939,3307.3,3307.2,3.57915635]
[1737805989957,4.32604939,3307.3,3307.2,3.2078]
[1737805993850,5.27704939,3307.3,3307.2,3.2078]
[1737805994353,4.32604939,3307.3,3307.2,3.2078]
[1737805994954,4.32604939,3307.3,3307.2,3.69166]
[1737805995458,4.32604939,3307.3,3307.2,3.2078]
[1737805995654,4.82544939,3307.3,3307.2,3.2078]
[1737805997152,4.82544939,3307.3,3307.2,0.37142232]
[1737805999153,4.34160939,3307.3,3307.2,0.37143258]
[1737805999356,4.34160939,3307.3,3307.2,0.85529258]
[1737806001361,4.34160939,3307.3,3307.2,0.85518147]
[1737806005355,4.34160939,3307.3,3307.2,0.85530566]
[1737806005556,4.82544939,3307.3,3307.2,0.85531298]
[1737806005861,4.34160939,3307.3,3307.2,0.85531298]
[1737806006566,4.82544939,3307.3,3307.2,1.44963302]
[1737806006762,4.82544939,3307.3,3307.2,0.85531298]
[1737806007266,4.82544939,3307.3,3307.2,0.85531454]
[1737806007459,4.34160939,3307.3,3307.2,0.85531454]
[1737806007666,4.34160939,3307.3,3307.2,2.54748738]
[1737806008664,0.4994,3307.3,3307.2,2.54748738]
[1737806009567,0.4994,3307.3,3307.2,43.34748738]
[1737806011266,0.98324,3307.3,3307.2,0.96577427]
[1737806011464,0.98324,3307.3,3307.2,0.37145454]
[1737806012268,4.48439139,3307.3,3307.0,1.10239045]
[1737806012469,0.48387,3307.1,3307.0,0.00453734]
[1737806012863,1.00957,3307.1,3307.0,0.00453734]
[1737806013770,0.5257,3307.1,3307.0,1.10239045]
[1737806013966,4.39433719,3307.1,3307.0,1.95783432]
[1737806014267,4.87820719,3307.1,3307.0,1.95783432]
[1737806015466,4.87820719,3307.1,3307.0,1.95785032]
[1737806017469,4.87820719,3307.1,3307.0,1.95795609]
[1737806018965,4.87820719,3307.1,3307.0,0.48842734]
[1737806019267,4.87820719,3307.1,3307.0,2.55264675]
[1737806019569,4.87820719,3307.1,3307.0,2.55260308]
[1737806021469,4.87820719,3307.1,3307.0,2.55261309]
[1737806022764,4.39433719,3307.1,3307.0,2.55261309]
[1737806023569,4.39433719,3307.1,3307.0,2.55257945]
[1737806024770,4.87820719,3307.1,3307.0,2.55257945]
[1737806025483,4.39433719,3307.1,3307.0,2.55257945]
[1737806025777,4.39433719,3307.1,3307.0,2.55261258]
[1737806027474,4.87820719,3307.1,3307.0,2.55261258]
[1737806027775,4.87820719,3307.1,3307.0,2.55278847]
[1737806028379,4.39433719,3307.1,3307.0,2.55278847]
[1737806029688,4.39433719,3307.1,3307.0,1.58628045]
[1737806030073,4.39433719,3307.1,3307.0,2.55236942]
[1737806030074,0.5257,3307.1,3307.0,2.55236942]
[1737806031782,0.5257,3307.1,3307.0,5.76016942]
[1737806032173,0.5257,3307.1,3307.0,4.79408045]
[1737806032379,1.09785311,3308.2,3307.0,6.84670003]
[1737806032580,1.4701,3307.5,3307.1,2.1793593]
[1737806032789,1.4701,3307.5,3307.4,0.48383]
[1737806032990,1.4701,3307.5,3307.4,1.4496993]
[1737806033689,1.4701,3307.5,3307.4,1.44929929]
[1737806034291,1.4701,3307.5,3307.4,0.85516434]
[1737806034686,1.4701,3307.5,3307.4,1.95301745]
[1737806036195,1.4701,3307.5,3307.4,1.9528905]
[1737806036382,1.4701,3307.5,3307.4,1.58168311]
[1737806038294,1.4701,3307.5,3307.4,1.95284542]
[1737806039592,1.4701,3307.5,3307.4,1.95269398]
[1737806040484,0.48816734,3308.8,3308.1,0.48373]
[1737806040689,1.0161,3308.7,3308.6,1.58150311]
[1737806040988,0.4906,3308.7,3308.6,1.9521442]
[1737806041188,0.00453734,3308.8,3308.6,1.9521442]
[1737806041189,0.00453734,3308.8,3308.7,0.48364]
[1737806041390,0.00453734,3308.8,3308.7,0.85370657]
[1737806041593,0.00453734,3308.8,3308.7,0.85368896]
[1737806041988,0.00453734,3308.8,3308.7,0.48364]
[1737806042391,0.00453734,3308.8,3308.7,0.85331367]
[1737806043387,0.53635,3309.5,3308.7,7.0583318]
[1737806043594,0.53635,3309.5,3309.4,1.58139311]
[1737806043792,0.53635,3309.5,3309.4,0.48354]
[1737806043998,0.53635,3309.5,3309.4,41.28354]
[1737806044292,2.80181549,3310.4,3309.4,41.28354]
[1737806044293,3.2078,3312.3,3311.7,0.48319]
[1737806044485,3.2078,3312.7,3311.8,2.31601549]
[1737806044992,3.2078,3311.9,3311.7,40.8]
[1737806045188,3.2078,3311.9,3311.5,0.48323]
[1737806045390,3.2078,3311.9,3311.5,0.00452899]
[1737806045584,3.2078,3311.9,3311.5,40.80452899]
[1737806045585,0.48322,3311.6,3311.5,40.80452899]
[1737806045790,0.4832,3311.7,3311.5,0.00452899]
[1737806045988,0.48321,3311.7,3311.5,0.00452899]
[1737806046196,0.516,3311.6,3311.5,0.00452899]
[1737806047192,4.45673668,3311.6,3311.5,0.00452899]
[1737806047796,0.516,3311.6,3310.7,5.52381549]
[1737806047999,0.99922,3311.6,3310.9,0.48331]
[1737806048188,0.516,3311.6,3311.1,3.69108]
[1737806048387,3.95135982,3311.5,3311.2,0.48326]
[1737806048792,3.95135982,3311.5,3311.2,0.48327]
[1737806048989,3.95135982,3311.5,3311.1,3.2078]
[1737806049386,4.43459982,3311.5,3311.1,3.2078]
[1737806049590,0.48325,3311.4,3311.1,3.2078]
[1737806049996,3.95867634,3311.3,3311.1,3.2078]
[1737806050589,3.95867634,3311.3,3311.2,0.48327]
[1737806050985,3.95867634,3311.3,3311.1,3.2078]
[1737806050986,0.516,3311.6,3311.1,3.2078]
[1737806051191,3.2078,3311.9,3311.4,2.31601549]
[1737806051593,3.2078,3311.9,3311.4,2.79925549]
[1737806051801,3.98105791,3311.8,3311.3,0.48326]
[1737806052103,3.2078,3313.8,3311.7,7.83983098]
[1737806052292,3.2078,3313.8,3311.4,2.623]
[1737806052293,3.2078,3314.2,3313.7,2.31601549]
[1737806052494,3.2078,3314.2,3313.8,0.48289]
[1737806052797,3.2078,3314.2,3313.8,0.48288]
[1737806052996,3.2078,3314.2,3313.8,0.4829]
[1737806052997,7.06086538,3314.2,3313.8,0.4829]
[1737806053298,7.06086538,3314.2,3313.7,43.12054448]
[1737806053799,7.06086538,3314.2,3313.7,40.80452899]
[1737806054303,3.2078,3314.2,3313.7,0.00452899]
[1737806054497,4.00429446,3314.1,3313.7,0.00452899]
[1737806054695,4.00429446,3314.1,3313.7,2.32054448]
[1737806055001,4.00429446,3314.1,3313.7,0.00452899]
[1737806055688,0.48289,3313.9,3313.7,0.00452899]
[1737806056199,3.92024644,3313.8,3313.7,0.00452899]
[1737806056401,4.40314644,3313.8,3313.7,0.00452899]
[1737806057001,3.92024644,3313.8,3313.7,0.00452899]
[1737806057197,4.40314644,3313.8,3313.7,0.00452899]
[1737806066402,1.68481552,3313.8,3313.7,0.00452899]
[1737806077204,1.68481552,3313.8,3313.7,0.37242219]
[1737806077408,1.68481552,3313.8,3313.7,0.00452899]
[1737806078003,1.68481552,3313.8,3313.7,0.37240983]
[1737806079711,1.68481552,3313.8,3313.7,0.00452899]
[1737806080112,1.68481552,3313.8,3313.7,0.37373996]
[1737806081210,1.68481552,3313.8,3313.7,0.96571817]
[1737806081712,1.68481552,3313.8,3313.7,0.96649085]
[1737806082510,1.68481552,3313.8,3313.7,0.96665657]
[1737806083711,1.68481552,3313.8,3313.7,0.96683963]
[1737806084821,1.68481552,3313.8,3313.7,0.96706183]
[1737806085620,1.68481552,3313.8,3313.7,0.96718739]
[1737806087823,1.68481552,3313.8,3313.7,0.96730756]
[1737806090922,0.4829,3313.8,3313.7,0.96730756]
[1737806091228,0.4829,3313.8,3313.7,1.43136618]
[1737806091425,0.48609155,3313.8,3313.7,0.96730756]
[1737806091826,4.43276379,3313.8,3313.7,0.96730756]
[1737806093929,4.43276379,3313.8,3313.7,0.96726908]
[1737806095824,4.43276379,3313.8,3313.7,0.96722382]
[1737806096024,3.94986379,3313.8,3313.7,3.76614931]
[1737806096230,0.00319155,3313.8,3313.7,3.28323931]
[1737806096732,0.48609155,3313.8,3313.7,3.28323931]
[1737806097431,0.00319155,3313.8,3313.7,3.28323931]
[1737806097732,0.48609155,3313.8,3313.7,3.28323931]
[1737806099227,4.44395635,3313.8,3313.7,0.96722382]
[1737806099426,3.96105635,3313.8,3313.2,3.2078]
[1737806099631,0.48297,3313.3,3313.2,3.2078]
[1737806099928,0.48297,3313.3,3313.2,4.163443]
[1737806100331,0.48297,3313.3,3313.2,4.16342464]
[1737806100533,0.48297,3313.3,3313.2,3.575355]
[1737806100832,0.48297,3313.3,3313.2,0.367555]
[1737806101225,4.44347481,3313.3,3313.2,0.367555]
[1737806101727,0.483,3313.1,3313.0,41.1]
[1737806101926,0.483,3313.1,3313.0,41.46732218]
[1737806103125,0.483,3313.1,3313.0,41.46726535]
[1737806103433,4.47750891,3313.1,3313.0,41.1]
[1737806103636,4.47750891,3313.1,3313.0,0.3]
[1737806105836,7.20230891,3313.1,3312.3,2.31601549]
[1737806106032,0.4831,3312.4,3312.3,2.31601549]
[1737806106338,0.48314,3312.1,3312.0,2.31601549]
[1737806106938,0.48314,3312.1,3312.0,43.11601549]
[1737806107235,0.48314,3312.2,3312.0,43.11601549]
[1737806107429,0.48311,3312.3,3312.0,43.11601549]
[1737806107629,0.48314,3312.1,3312.0,43.11601549]
[1737806108040,4.38166577,3312.1,3312.0,43.11601549]
[1737806108551,4.38166577,3312.1,3312.0,40.8]
[1737806108848,4.38166577,3312.1,3312.0,41.16706736]
[1737806108849,4.86286577,3312.1,3312.0,41.16706736]
[1737806109237,4.86286577,3312.1,3312.0,40.8]
[1737806109549,0.96434,3312.1,3312.0,40.8]
[1737806109748,0.96434,3312.1,3312.0,41.1668008]
[1737806110353,0.96434,3312.1,3312.0,41.16677578]
[1737806110840,0.96434,3312.1,3312.0,40.8]
[1737806111046,0.5139,3312.3,3312.0,43.96573915]
[1737806111351,0.5139,3312.3,3312.1,0.36656366]
[1737806111352,0.48313,3312.2,3312.1,0.36656366]
[1737806111542,0.48314,3312.1,3312.0,43.11601549]
[1737806111738,0.48763899,3312.4,3312.1,0.48313]
[1737806111943,0.48763899,3312.4,3312.3,5.52381549]
[1737806112142,0.48763899,3312.4,3312.3,3.2078]
[1737806115452,4.44650414,3312.4,3312.3,3.2078]
[1737806115648,3.96339414,3312.4,3312.0,40.8]
[1737806115848,0.48314,3312.1,3312.0,40.8]
[1737806117451,3.96339414,3312.4,3311.9,3.2078]
[1737806117452,0.48316,3312.0,3311.9,3.2078]
[1737806118454,4.37126855,3312.0,3311.9,3.2078]
[1737806118656,4.37126855,3312.0,3311.7,0.00452899]
[1737806118657,3.88810855,3312.0,3311.7,0.00452899]
[1737806118854,0.48319,3311.8,3311.7,0.00452899]
[1737806119360,0.99959,3311.8,3311.7,0.00452899]
[1737806120365,4.83431717,3311.8,3311.7,0.00452899]
[1737806125268,4.83431717,3311.8,3311.7,0.48772899]
[1737806125269,0.5164,3311.8,3311.7,0.48772899]
[1737806125859,0.99959,3311.8,3311.7,0.00452899]
[1737806126567,5.01311564,3311.8,3311.7,0.00452899]
[1737806131960,5.01311564,3311.8,3311.7,0.37131677]
[1737806132466,5.01311564,3311.8,3311.7,0.37145211]
[1737806134456,5.01311564,3311.8,3311.7,0.37174632]
[1737806136267,5.01311564,3311.8,3311.7,0.37186594]
[1737806138369,5.01311564,3311.8,3311.7,0.37190053]
[1737806138771,0.48327,3311.3,3311.1,0.48328]
[1737806138959,0.48326,3311.3,3311.2,0.58091933]
[1737806139364,0.48328,3311.2,3311.0,0.4833]
[1737806139663,0.48329,3311.1,3311.0,0.4833]
[1737806139867,3.92211013,3311.6,3311.0,0.4833]
[1737806140068,5.13019013,3311.6,3310.9,44.49111]
[1737806140367,0.4833,3311.0,3310.9,44.0078]
[1737806140571,0.4833,3311.0,3310.9,3.2078]
[1737806140973,1.4886,3311.0,3310.9,3.2078]
[1737806141171,5.38152411,3311.0,3310.9,3.2078]
[1737806142066,3.2078,3312.0,3310.9,3.2078]
[1737806142274,0.4832,3311.8,3311.6,0.48321]
[1737806143067,1.4782,3311.8,3311.6,0.48321]
[1737806143570,0.995,3311.8,3311.2,2.31601549]
[1737806143768,0.995,3311.8,3311.7,0.4832]
[1737806144271,1.47819,3311.8,3311.6,0.48321]
[1737806144975,0.48319,3311.8,3311.6,0.48321]
[1737806147568,0.993,3311.9,3311.2,2.31601549]
[1737806147764,0.993,3311.9,3311.3,0.58139637]
[1737806147974,0.993,3311.9,3311.4,0.58139637]
[1737806148175,0.48319,3311.8,3311.6,0.48321]
[1737806149183,1.47618,3311.9,3311.7,0.4832]
[1737806149370,0.48319,3311.8,3311.7,0.4832]
[1737806149571,0.48319,3311.8,3311.3,3.2078]
[1737806149777,0.48319,3311.8,3311.6,0.48321]
[1737806150780,0.48319,3311.8,3311.7,0.36339052]
[1737806152578,0.48319,3311.8,3311.7,0.36338287]
[1737806153173,0.48319,3311.8,3311.7,0.84658287]
[1737806154382,0.48319,3311.8,3311.7,0.36338287]
[1737806154974,0.48319,3311.8,3311.6,0.48321]
[1737806156983,0.4832,3311.7,3311.5,0.48322]
[1737806157886,0.4832,3311.7,3311.6,0.48322]
[1737806158086,0.4832,3311.7,3311.3,3.2078]
[1737806158383,0.4832,3311.7,3311.5,0.48322]
[1737806160083,0.48322,3311.6,3311.5,0.48322]
[1737806160282,0.48322,3311.6,3311.5,0.85051856]
[1737806161078,0.48322,3311.6,3311.5,0.48322]
[1737806162085,0.48322,3311.6,3311.5,0.85048612]
[1737806162687,0.993,3311.9,3311.5,2.68328161]
[1737806162887,0.48321,3311.7,3311.6,0.85047612]
[1737806164381,0.48321,3311.7,3311.6,0.48321]
[1737806164689,0.48321,3311.7,3311.6,0.85046762]
[1737806165990,0.982,3312.0,3311.6,0.85046762]
[1737806165991,0.48317,3311.9,3311.7,0.48319]
[1737806166177,0.48317,3311.9,3311.8,0.36725762]
[1737806166790,4.38411234,3311.9,3311.8,0.36725762]
[1737806166990,4.38411234,3311.9,3311.8,0.36493746]
[1737806168793,0.48319,3311.8,3311.6,0.48321]
[1737806169089,0.48319,3311.8,3311.7,0.4832]
[1737806170686,3.90094234,3311.9,3311.5,2.31601549]
[1737806170990,4.38412234,3311.9,3311.7,0.48319]
[1737806171191,0.48319,3311.8,3311.7,0.48319]
[1737806171390,4.38412234,3311.9,3311.7,0.48319]
[1737806171591,4.38412234,3311.9,3311.8,0.48319]
[1737806171784,3.90094234,3311.9,3311.5,2.31601549]
[1737806171981,3.90094234,3311.9,3311.7,0.4832]
[1737806172389,4.38412234,3311.9,3311.7,0.4832]
[1737806172590,3.90094234,3311.9,3311.8,0.48319]
[1737806172785,1.4938,3312.2,3312.1,0.48314]
[1737806172983,1.4938,3312.2,3312.1,1.07107748]
[1737806173189,1.4938,3312.2,3312.1,3.38709297]
[1737806173393,1.4938,3312.2,3312.1,47.39489297]
[1737806173594,0.00452899,3312.4,3312.1,46.91175297]
[1737806173794,0.00452899,3312.4,3312.3,0.48311]
[1737806173994,0.00452899,3312.4,3312.3,1.07104748]
[1737806174194,0.00452899,3312.4,3312.3,0.48311]
[1737806174596,0.00452899,3312.4,3312.3,1.07018171]
[1737806174794,0.00452899,3312.4,3312.3,6.07018171]
[1737806175097,3.2078,3312.8,3312.7,0.48306]
[1737806175300,3.2078,3312.8,3312.7,2.79907549]
[1737806176996,3.2078,3312.8,3312.4,2.61631549]
[1737806177293,3.2078,3312.8,3312.4,2.31601549]
[1737806177602,0.48307,3312.6,3312.4,2.79910549]
[1737806177997,0.5134,3312.5,3312.4,2.79910549]
[1737806178190,0.99649,3312.5,3312.4,2.79910549]
[1737806179498,0.5134,3312.5,3312.4,2.79910549]
[1737806180400,3.69085,3312.8,3312.7,0.48306]
[1737806181400,3.2078,3312.8,3312.5,0.48309]
[1737806181600,3.2078,3312.8,3312.4,2.31601549]
[1737806181898,0.48306,3312.7,3312.6,0.48307]
[1737806182098,0.48307,3312.6,3312.5,0.48308]
[1737806182601,4.35877187,3312.7,3312.6,0.48307]
[1737806183201,3.87570187,3312.7,3312.6,0.48307]
[1737806184895,4.35876187,3312.7,3312.6,0.48307]
[1737806185399,3.87570187,3312.7,3312.6,0.48307]
[1737806187897,3.87570187,3312.7,3312.1,40.8]
[1737806188103,3.2078,3312.8,3312.3,0.4831]
[1737806188104,0.48311,3312.4,3312.3,0.4831]
[1737806188897,0.48309,3312.6,3312.5,0.48308]
[1737806189200,0.48311,3312.4,3312.3,0.48311]
[1737806190098,0.48314,3312.2,3312.1,0.48313]
[1737806190400,3.91343273,3312.4,3312.0,3.2078]
[1737806190401,0.48314,3312.1,3312.0,3.69095]
[1737806190596,0.48314,3312.1,3312.0,3.2078]
[1737806191003,3.89479867,3312.1,3311.8,0.48318]
[1737806191202,0.48316,3312.0,3311.8,0.48318]
[1737806191395,0.48317,3311.9,3311.8,0.48318]
[1737806191600,0.972,3312.1,3311.6,44.0078]
[1737806191805,0.5098,3311.8,3311.7,0.4832]
[1737806192606,0.4832,3311.7,3311.6,41.28321]
[1737806192797,0.48322,3311.6,3311.5,0.48323]
[1737806193003,0.5148,3311.6,3311.5,0.48323]
[1737806193205,0.5148,3311.6,3311.5,41.28323]
[1737806193710,0.99802,3311.6,3311.5,41.28323]
[1737806194598,4.98724856,3311.6,3311.5,40.8]
[1737806194999,4.98724856,3311.6,3311.2,5.52381549]
[1737806195000,4.50402856,3311.6,3311.2,5.52381549]
[1737806195299,0.48324,3311.5,3311.3,0.48325]
[1737806195501,0.48324,3311.5,3311.3,41.28325]
[1737806196204,0.48324,3311.5,3311.4,0.48325]
[1737806196706,4.98725856,3311.6,3311.4,0.48323]
[1737806197099,4.98725856,3311.6,3311.3,40.8]
[1737806197303,4.98725856,3311.6,3311.5,0.48323]
[1737806197702,4.50402856,3311.6,3311.5,0.48323]
[1737806198696,4.50402856,3311.6,3311.3,40.8]
[1737806198697,0.48324,3311.5,3311.3,40.8]
[1737806198897,0.48324,3311.5,3311.2,3.69107]
[1737806199305,4.50402856,3311.6,3311.2,44.0078]
[1737806199501,4.50402856,3311.6,3311.4,0.48324]
[1737806199707,4.50402856,3311.6,3311.3,0.48325]
[1737806199899,4.98725856,3311.6,3311.4,0.48325]
[1737806200101,0.48323,3311.5,3311.3,0.48325]
[1737806200403,4.98724856,3311.6,3311.4,0.48324]
[1737806202303,4.50402856,3311.6,3311.4,0.48324]
[1737806202509,4.98725856,3311.6,3311.4,0.48324]
[1737806202707,0.48323,3311.5,3311.4,0.48324]
[1737806205019,0.48325,3311.4,3311.3,0.48326]
[1737806205216,0.48326,3311.3,3311.2,3.69107]
[1737806205417,0.97956,3311.3,3311.2,3.2078]
[1737806206716,0.97956,3311.3,3311.1,0.48329]
[1737806207814,0.48328,3311.2,3311.0,0.4833]
[1737806208722,0.4833,3311.1,3310.9,41.28331]
[1737806209017,0.4833,3311.0,3310.9,41.28331]
[1737806209223,4.00563962,3311.1,3310.9,41.28331]
[1737806209424,4.48893962,3311.1,3310.9,0.48331]
[1737806209628,0.4833,3311.0,3310.9,0.48331]
[1737806212022,0.48332,3310.9,3310.8,0.00452899]
[1737806212327,0.95862,3310.9,3310.8,0.00452899]
[1737806212821,4.90047584,3310.9,3310.8,0.00452899]
[1737806215917,0.48339,3310.5,3310.3,0.4834]
[1737806216124,0.4834,3310.4,3310.2,0.75470912]
[1737806216423,4.44054945,3310.4,3310.2,0.75470912]
[1737806218127,3.95714945,3310.4,3310.2,0.27129912]
[1737806218326,0.964,3310.7,3310.3,2.31601549]
[1737806218533,0.964,3310.7,3310.6,0.48336]
[1737806218929,0.964,3310.7,3310.6,41.28336]
[1737806219627,0.964,3310.7,3310.6,44.49116]
[1737806220726,0.964,3310.7,3310.6,3.69116]
[1737806221234,0.964,3310.7,3310.6,44.49116]
[1737806221427,0.4753,3310.9,3310.8,0.48333]
[1737806222337,4.41572169,3310.9,3310.8,0.48333]
[1737806222935,3.94042169,3310.9,3310.8,0.48333]
[1737806223433,1.95518,3311.2,3310.8,0.36009611]
[1737806223634,1.95518,3311.2,3311.0,0.48329]
[1737806224030,3.93942604,3311.1,3311.0,0.48329]
[1737806229337,0.4983,3311.2,3311.1,0.48329]
[1737806237543,0.98159,3311.2,3311.0,3.6911]
[1737806238849,0.98159,3311.2,3311.1,0.48329]
[1737806239450,0.48329,3311.1,3311.0,3.6911]
[1737806239749,0.48329,3311.1,3311.0,4.05125874]
[1737806240250,0.4983,3311.2,3311.1,0.48329]
[1737806240951,0.98157,3311.2,3311.1,0.48329]
[1737806241151,0.98157,3311.2,3311.0,3.69109]
[1737806241354,0.4983,3311.2,3311.1,0.48329]
[1737806242348,0.4983,3311.2,3311.0,3.2078]
[1737806242553,0.98158,3311.2,3311.0,3.69109]
[1737806242866,0.48329,3311.1,3311.0,3.69109]
[1737806243753,0.48329,3311.1,3311.0,4.78634027]
[1737806244149,0.48329,3311.1,3311.0,4.30305027]
[1737806246648,4.39940318,3311.1,3311.0,4.30305027]
[1737806246955,4.39940318,3311.1,3311.0,1.09525027]
[1737806251851,4.39940318,3311.1,3311.0,1.45587312]
[1737806252946,4.39940318,3311.1,3311.0,1.45588106]
[1737806255058,4.39940318,3311.1,3311.0,1.45587442]
[1737806257653,3.91611318,3311.1,3311.0,0.36061232]
[1737806257953,0.48332,3310.9,3310.8,1.09525027]
[1737806258159,0.48332,3310.9,3310.8,1.45590235]
[1737806258759,4.32475457,3310.9,3310.8,1.45590235]
[1737806260950,3.84143457,3310.9,3310.8,1.45590235]
[1737806261157,0.4983,3311.2,3310.8,1.45577959]
[1737806261455,0.4983,3311.2,3310.6,44.0078]
[1737806261456,0.4983,3311.2,3311.1,1.57854027]
[1737806261655,0.4983,3311.2,3311.1,1.93906959]
[1737806263261,0.4983,3311.2,3311.1,1.93897686]
[1737806263763,0.4983,3311.2,3311.1,0.84372659]
[1737806263961,0.4741,3311.3,3311.1,0.36043659]
[1737806264162,0.4741,3311.3,3311.2,1.93895686]
[1737806265165,0.4741,3311.3,3311.2,1.93883445]
[1737806265660,0.00452899,3311.4,3311.3,0.48326]
[1737806265862,0.00452899,3311.4,3311.3,1.14847418]
[1737806266166,0.00452899,3311.4,3311.3,1.52977418]
[1737806273459,0.00452899,3311.4,3311.3,1.52868333]
[1737806274765,0.00452899,3311.4,3311.3,1.52861624]
[1737806275375,0.00452899,3311.4,3311.3,1.16946]
[1737806275567,0.00452899,3311.4,3311.3,1.52857385]
[1737806277465,0.00452899,3311.4,3311.3,1.52850811]
[1737806278568,4.30305027,3312.8,3311.3,7.14049838]
[1737806278569,3.2078,3312.8,3311.3,7.14049838]
[1737806278770,0.48304,3312.9,3312.6,1.57832027]
[1737806278978,0.952,3313.1,3312.6,42.37832027]
[1737806279170,0.48302,3313.0,3312.6,42.37832027]
[1737806279680,0.48303,3312.9,3312.6,42.37832027]
[1737806279878,1.97363,3312.9,3312.6,42.37832027]
[1737806280466,1.4906,3312.9,3312.6,42.37832027]
[1737806281678,1.4906,3312.9,3312.6,46.80212463]
[1737806282379,1.4906,3312.9,3312.6,44.49087]
[1737806282881,0.48305,3312.8,3312.6,44.49087]
[1737806283271,4.26083668,3312.7,3312.3,0.00452899]
[1737806283473,0.48309,3312.5,3312.3,0.48763899]
[1737806283671,0.4831,3312.4,3312.3,0.00452899]
[1737806283879,0.986,3312.4,3312.3,0.00452899]
[1737806284076,4.90301668,3312.4,3312.3,0.00452899]
[1737806284378,8.11081668,3312.4,3312.3,0.00452899]
[1737806284887,0.48315,3312.1,3311.9,0.48317]
[1737806285069,7.62771668,3312.4,3311.7,3.2078]
[1737806285070,0.48319,3311.8,3311.7,3.2078]
[1737806285577,4.34589282,3311.8,3311.7,3.2078]
[1737806287269,4.34589282,3311.8,3311.7,2.4179]
[1737806287480,0.48323,3311.5,3311.4,0.00452899]
[1737806287870,0.48325,3311.4,3311.0,0.4833]
[1737806288082,0.4833,3311.1,3310.9,41.28331]
[1737806288276,3.90542818,3311.3,3310.9,41.28331]
[1737806288579,4.38869818,3311.3,3311.1,0.48329]
[1737806289381,3.90542818,3311.3,3311.1,2.31125463]
[1737806289582,3.90542818,3311.3,3311.1,2.79453463]
[1737806289783,4.38869818,3311.3,3311.1,2.79453463]
[1737806290481,4.38082818,3311.3,3311.2,0.48327]
[1737806290875,4.86408818,3311.3,3311.1,2.79453463]
[1737806291081,0.4886,3311.2,3311.1,2.79453463]
[1737806292484,0.97187,3311.2,3311.1,2.31125463]
[1737806292877,0.4886,3311.2,3311.1,2.31125463]
[1737806293078,0.4886,3311.2,3311.1,2.79454463]
[1737806293282,0.97187,3311.2,3311.1,2.31125463]
[1737806293781,0.4833,3311.0,3310.9,40.80452899]
[1737806293986,0.4833,3311.0,3310.9,0.00452899]
[1737806295788,0.48333,3310.8,3310.7,40.8]
[1737806297088,0.951,3311.0,3310.5,2.31125463]
[1737806297290,1.47606,3310.7,3310.5,2.31125463]
[1737806297482,0.9927,3310.7,3310.5,2.31125463]
[1737806297790,0.9927,3310.7,3310.6,41.28336]
[1737806302384,0.9927,3310.7,3310.6,41.80796]
[1737806304992,1.47605,3310.7,3310.6,41.80796]
[1737806305590,0.9927,3310.7,3310.6,41.80796]
[1737806306182,1.47605,3310.7,3310.6,41.80796]
[1737806306382,0.9927,3310.7,3310.6,41.80796]
[1737806306894,1.47605,3310.7,3310.6,41.80796]
[1737806308192,1.47605,3310.7,3310.6,1.00796]
[1737806309290,1.47605,3310.7,3310.6,0.48336]
[1737806309692,0.5067,3310.7,3310.6,41.28336]
[1737806309886,0.99005,3310.7,3310.6,41.28336]
[1737806311187,0.99005,3310.7,3310.6,0.48336]
[1737806313091,0.99005,3310.7,3310.6,0.84324725]
[1737806313290,0.5067,3310.7,3310.6,0.84324725]
[1737806314191,0.5067,3310.7,3310.6,0.84349421]
[1737806314592,0.99005,3310.7,3310.6,0.84349421]
[1737806315593,0.5067,3310.7,3310.6,0.84349421]
[1737806315891,0.99005,3310.7,3310.6,0.84349421]
[1737806317187,0.99005,3310.7,3310.6,0.84374783]
[1737806317395,0.99005,3310.7,3310.6,0.36038783]
[1737806317901,0.99005,3310.7,3310.6,0.84374783]
[1737806319096,0.99005,3310.7,3310.6,0.84394431]
[1737806320193,0.99005,3310.7,3310.6,0.84406114]
[1737806322596,0.99005,3310.7,3310.6,0.36070114]
[1737806322800,0.48338,3310.5,3310.4,0.00301929]
[1737806323695,3.88848628,3310.5,3309.8,3.7317]
[1737806323900,0.4996,3310.4,3309.9,0.36081405]
[1737806324089,0.48345,3310.1,3310.0,0.48345]
[1737806324292,0.48345,3310.1,3310.0,0.84407931]
[1737806324499,0.48345,3310.1,3310.0,0.36062931]
[1737806324700,4.46539019,3310.1,3310.0,0.36062931]
[1737806325294,0.48345,3310.0,3309.9,0.48346]
[1737806325503,0.98435,3310.0,3309.9,0.84395061]
[1737806326001,4.95134825,3310.0,3309.9,0.84395061]
[1737806326203,4.95134825,3310.0,3309.9,0.8438669]
[1737806326399,4.95134825,3310.0,3309.9,0.48346]
[1737806326602,4.95134825,3310.0,3309.3,43.11125463]
[1737806326603,4.46789825,3310.0,3309.3,43.11125463]
[1737806326897,4.46789825,3310.0,3309.5,0.5244]
[1737806326898,0.48352,3309.6,3309.5,0.5244]
[1737806328204,4.35248824,3309.6,3309.5,0.5244]
[1737806329702,0.48354,3309.4,3309.3,41.28354]
[1737806330004,0.48354,3309.4,3309.3,41.64351106]
[1737806330205,0.48354,3309.4,3309.3,40.8]